[Event "FIDE WCCC U10 2018"]
[Site "Santiago de Compostela"]
[Date "2018.11.07"]
[Round "3"]
[White "Giang, Tran Nam"]
[Black "Zhong, Kevin"]
[Result "0-1"]
[ECO "B38"]
[WhiteElo "1747"]
[BlackElo "2038"]
[Annotator "NA RC"]
[PlyCount "146"]
[EventDate "2018.11.04"]
[EventType "swiss"]
[EventCountry "ESP"]
[SourceTitle "playchess.com"]
[Source "ChessBase"]
[SourceQuality "1"]
[TimeControl "40/5400+30:1800+30"]

{[%evp 13,146,43,57,32767,57,32767,32767,32767,32767,32767,32767,32767,32767,55,48,32767,57,54,52,35,50,32767,-74,-79,-83,-196,-200,-189,-122,-187,-171,-185,-187,-184,-177,-199,-210,-198,-200,-279,-224,-247,-158,-283,-223,-242,-233,-233,-200,-200,-186,-186,-190,-202,-189,-186,-216,-254,-218,-256,-273,-213,-231,-236,-220,-200,-169,-213,-92,32767,0,32767,32767,-220,-234,-233,-220,-216,0,-205,-208,-288,32767,-288,32767,32767,32767,-107,-95,-99,-105,-239,-282,32767,-264,32767,32767,-263,-278,32767,32767,-329,-338,-421,-427,-495,-466,-677,-700,-675,-704,-619,-791,-962,-731,-1293,-1717,-1687,-2247,-1419,-1759,-5543,-10270,-12828,-29983,-29982,-29984,-29985,-29979,-2372,-29983,-29980,-29986,-29985,-29981]} 1. e4 {[%emt 0:00:00]} c5 {[%emt 0:00:00]} 2. Nf3 {[%emt 0:00:00]} g6 {[%emt 0:00:00]} 3. d4 {[%emt 0:00:00]} cxd4 {[%emt 0:00:00]} 4. Nxd4 {[%emt 0:00:00]} Bg7 {[%emt 0:00:00]} 5. c4 {[%emt 0:00:03]} Nc6 {[%emt 0:00:09]} 6. Be3 {[%emt 0:00:10]} Nf6 {[%emt 0:00:12]} 7. Nc3 {[%emt 0:01:10]} d6 {[%emt 0:00:21]} 8. Be2 {[%emt 0:00:45]} O-O {[%emt 0:00:08]} 9. O-O {[%emt 0:00:34]} Bd7 {[%emt 0:00:12]} 10. f3 {[%emt 0:00:24]} Nxd4 {[%emt 0:00:13]} 11. Bxd4 {[%emt 0:00:15]} a5 {[%emt 0:00:09]} 12. b3 {[%emt 0:00:23]} Bc6 {[%emt 0:00:07]} 13. Qd2 {[%emt 0:00:44]} Nd7 {[%emt 0:00:09]} 14. Be3 {[%emt 0:00:12]} Nc5 {[%emt 0:00:08]} 15. Rab1 {[%emt 0:00:19] LiveBook: 931 Games} e6 {[%emt 0:00:23]} 16. Rfd1 {[%emt 0:02:42] B38: Sicilian: Maroczy Bind with 5...Bg7 and 7...0-0} Be5 {[%emt 0:00:07]} 17. Bf1 {[%emt 0:04:42]} Qh4 $1 {[%emt 0:02:34]} 18. g3 {[%emt 0:07:20]} Qf6 {[%emt 0:00:11] [#]} 19. Ne2 $146 {[%emt 0:02:11]} ({Predecessor:} 19. Bd4 $15 Qxf3 20. Bg2 Qf6 21. Bxe5 dxe5 22. Qd6 Nd7 23. Rf1 Qd8 {½-½ (34) Kryvoruchko,Y (2707)-Iturrizaga Bonelli,E (2653) Dubai 2014}) 19... Qxf3 {[%emt 0:10:59]} 20. Bg2 {[%emt 0:02:27]} Qh5 {[%emt 0:02:16]} ({Black should play} 20... Nxe4 $19 21. Bxf3 Nxd2 22. Bxc6 Nxb1 23. Bxb7 Rab8) 21. Bxc5 {[%emt 0:02:12]} (21. Qc2 $17) 21... dxc5 {[%emt 0:01:25]} 22. Qe3 {[%emt 0:00:45]} Bg7 {[%emt 0:11:40]} 23. Nf4 {[%emt 0:02:20]} Qe5 {[%emt 0:03:56]} 24. Nd3 {[%emt 0:04:58]} Qd4 {[%emt 0:01:31]} 25. Qxd4 {[%emt 0:00:21]} Bxd4+ {[%emt 0:00:40]} 26. Kf1 {[%emt 0:00:11]} (26. Kh1 $142) 26... Rad8 {[%emt 0:03:50]} 27. Rbc1 {[%emt 0:03:45]} (27. e5 {might work better.}) 27... b6 {[%emt 0:02:58]} ({Black should play} 27... e5 $19 28. Rc2 Rd6) 28. a4 {[%emt 0:02:30]} (28. e5 $17 {was forced.} Ba8 29. Bxa8 Rxa8 30. a4) 28... Rd7 {[%emt 0:05:15]} 29. Nf4 {[%emt 0:09:39]} Rfd8 {[%emt 0:02:55]} 30. Ke2 {[%emt 0:00:57]} h5 {[%emt 0:06:18]} 31. Rd3 {[%emt 0:05:51]} Be5 {[%emt 0:12:05]} 32. Rxd7 {[%emt 0:02:17]} Rxd7 {[%emt 0:00:09]} 33. Nd3 {[%emt 0:00:17]} Bg7 {[%emt 0:00:43]} 34. Bh1 {[%emt 0:02:14]} Rd4 {[%emt 0:06:20]} 35. e5 {[%emt 0:02:16]} Bxh1 {[%emt 0:02:35]} 36. Rxh1 {[%emt 0:01:32]} Kf8 {[%emt 0:00:06]} 37. Re1 {[%emt 0:01:04]} h4 {[%emt 0:03:11]} 38. Ke3 {[%emt 0:04:24]} Bh6+ {[%emt 0:03:25]} 39. Ke2 {[%emt 0:00:54]} hxg3 {[%emt 0:01:03]} 40. hxg3 {[%emt 0:00:00]} Re4+ {[%emt 0:00:00]} (40... Kg7 $19 {has better winning chances.} 41. Rd1 Re4+ 42. Kf1 Re3) 41. Kf3 {[%emt 0:00:40]} Rd4 {[%emt 0:03:10]} (41... Rxe1 $17 42. Nxe1 Bd2) 42. Ke2 {[%emt 0:00:17]} Bg5 {[%emt 0:00:42]} 43. Rh1 {[%emt 0:01:00]} Kg7 {[%emt 0:00:23]} 44. Rf1 {[%emt 0:01:17]} Re4+ {[%emt 0:02:10]} 45. Kf2 {[%emt 0:00:53]} Rd4 $2 {[%emt 0:05:49]} (45... Re3 $19 46. Rd1 f6 47. exf6+ Kf7) 46. Ke2 {[%emt 0:00:23]} Bh6 {[%emt 0:00:46]} 47. Rf3 {[%emt 0:00:52]} Kf8 {[%emt 0:00:31]} 48. Rf1 $2 {[%emt 0:01:45]} (48. Nf2 $17 {was called for.}) 48... Re4+ {[%emt 0:02:24]} 49. Kf2 {[%emt 0:00:21]} Bg7 {[%emt 0:00:39]} 50. Kf3 {[%emt 0:00:18]} Rd4 {[%emt 0:00:14]} 51. Ke3 {[%emt 0:00:21]} Kg8 {[%emt 0:00:49]} 52. Rf3 {[%emt 0:01:09]} (52. Rh1 $17 {was called for.}) 52... Bh6+ {[%emt 0:01:15]} 53. Ke2 {[%emt 0:00:36]} Re4+ {[%emt 0:00:39]} 54. Kf2 {[%emt 0:01:01]} Bg5 {[%emt 0:00:58]} 55. Kg2 {[%emt 0:01:12]} (55. Ne1 $142) 55... Be3 {[%emt 0:01:41]} 56. Rf1 {[%emt 0:03:50]} Bd4 {[%emt 0:02:43]} 57. Rd1 {[%emt 0:01:17]} Re3 {[%emt 0:01:03]} 58. Rd2 {[%emt 0:01:07]} (58. Kh3 {might work better.}) 58... Kf8 {[%emt 0:00:10]} 59. Nc1 {[%emt 0:03:25]} Rxe5 {[%emt 0:02:41]} 60. Re2 {[%emt 0:01:02]} (60. Ne2 $142 Re3 61. Nxd4 cxd4 62. Rxd4) 60... Rxe2+ {[%emt 0:00:43]} 61. Nxe2 {[%emt 0:00:02]} Be5 {[%emt 0:01:14]} 62. Kf3 {[%emt 0:00:07]} f5 {[%emt 0:00:10]} 63. g4 {[%emt 0:00:22]} g5 {[%emt 0:01:03]} 64. gxf5 {[%emt 0:00:17]} exf5 {[%emt 0:00:11]} 65. Nc1 {[%emt 0:00:14]} Kf7 {[%emt 0:00:13]} 66. Nd3 {[%emt 0:00:06]} Kf6 {[%emt 0:00:11]} 67. Nf2 {[%emt 0:00:09]} g4+ {[%emt 0:01:28]} 68. Kg2 {[%emt 0:01:13]} Bd4 {[%emt 0:00:27]} 69. Nd3 {[%emt 0:00:21]} Kg5 {[%emt 0:00:08]} 70. Kg3 {[%emt 0:00:16]} Bf6 {[%emt 0:00:09]} 71. Kf2 {[%emt 0:00:11]} f4 {[%emt 0:00:05]} 72. Ne1 {[%emt 0:00:22]} Bd4+ {[%emt 0:00:10]} 73. Kg2 {[%emt 0:00:09]} f3+ {[%emt 0:00:07]} 0-1

[Event "FIDE WCCC U10 2018"]
[Site "Santiago de Compostela"]
[Date "2018.11.07"]
[Round "3"]
[White "Anand, Batsukh"]
[Black "Xiao, Tong"]
[Result "0-1"]
[ECO "B40"]
[WhiteElo "1746"]
[BlackElo "2022"]
[Annotator "NA RC"]
[PlyCount "70"]
[EventDate "2018.11.04"]
[EventType "swiss"]
[EventCountry "ESP"]
[SourceTitle "playchess.com"]
[Source "ChessBase"]
[SourceQuality "1"]
[TimeControl "40/5400+30:1800+30"]

{[%evp 8,70,42,47,47,26,37,28,39,31,16,0,10,-14,8,-8,-17,-7,-21,-57,-35,-42,-39,-35,0,-39,-6,-76,-82,-77,-76,-75,-69,-94,-68,-130,-130,-138,-139,-118,-119,-129,-132,-152,-135,-221,-187,-208,-232,-306,32767,-481,32767,32767,32767,-674,-737,-684,-718,32767,32767,-763,-804,-2309,-4978]} 1. e4 {[%emt 0:01:25]} c5 {[%emt 0:00:51]} 2. Nf3 {[%emt 0:02:00]} e6 {[%emt 0:02:30]} 3. g3 {[%emt 0:01:40]} a6 {[%emt 0:02:00] B40: Sicilian: 2...e6, Unusual lines} (3... Nc6 4. Bg2 Nf6 5. Qe2 Be7 6. O-O O-O 7. Rd1 e5 8. c3 Re8 9. Na3 Bf8 10. d3 d5 11. exd5 Nxd5 12. Ng5 h6 13. Ne4 f5 {1-0 (65) Artemiev,V (2706)-Morozevich,A (2656) Sochi 2018}) 4. Bg2 {[%emt 0:01:33]} Nc6 {[%emt 0:00:53]} 5. O-O {[%emt 0:01:19]} d6 {[%emt 0:01:21]} 6. c3 {[%emt 0:02:13] LiveBook: 3 Games} Nf6 {[%emt 0:01:59]} 7. Qe2 {[%emt 0:04:02]} Be7 {[%emt 0:03:44]} 8. Rd1 {[%emt 0:08:13]} O-O {[%emt 0:05:04]} 9. d3 {[%emt 0:04:11]} Qc7 {[%emt 0:02:30]} 10. a3 $146 {[%emt 0:01:12]} ({Predecessor:} 10. d4 cxd4 11. cxd4 d5 12. exd5 Nxd5 {1-0 (37) Jimenez,L (1840)-Suasnabar,J (2022) Bogota 2014}) 10... b5 {[%emt 0:02:30]} 11. b4 {[%emt 0:05:09]} Bb7 {[%emt 0:06:11]} 12. bxc5 {[%emt 0:01:03]} dxc5 {[%emt 0:00:12]} 13. Bf4 {[%emt 0:01:36]} e5 {[%emt 0:01:12]} 14. Be3 {[%emt 0:01:07]} Na5 {[%emt 0:03:25]} 15. Nbd2 {[%emt 0:06:00]} Nd7 {[%emt 0:06:09]} 16. Ng5 {[%emt 0:02:15]} (16. a4 $11) 16... h6 {[%emt 0:03:55]} 17. Nh3 {[%emt 0:01:12]} Nb6 {[%emt 0:05:13]} 18. f4 {[%emt 0:02:42]} Na4 {[%emt 0:00:48]} 19. Rdc1 {[%emt 0:01:01]} c4 {[%emt 0:00:45]} 20. dxc4 {[%emt 0:07:29]} bxc4 {[%emt 0:02:05]} 21. fxe5 {[%emt 0:08:08] [#]} Nb3 $1 {[%emt 0:02:12]} ({Don't play} 21... Qxe5 22. Bd4 $15) 22. Qxc4 {[%emt 0:17:39]} Qxc4 {[%emt 0:00:23]} 23. Nxc4 {[%emt 0:00:05]} Nxa1 {[%emt 0:02:46]} 24. Rxa1 {[%emt 0:01:57]} Nxc3 {[%emt 0:00:19]} 25. Nf2 {[%emt 0:00:35]} a5 {[%emt 0:01:48]} 26. Bb6 {[%emt 0:03:39]} (26. Bh3 $17 {war angesagt.}) 26... a4 {[%emt 0:00:50]} 27. Nd6 {[%emt 0:01:07]} Ba6 {[%emt 0:02:20]} 28. Kh1 {[%emt 0:06:23]} (28. Nf5 $142 Rfe8 29. Ng4) 28... Rab8 {[%emt 0:01:03]} 29. Ba5 {[%emt 0:00:37]} Rb1+ {[%emt 0:00:44]} 30. Rxb1 {[%emt 0:00:09]} Nxb1 {[%emt 0:00:06]} 31. Bb4 {[%emt 0:02:48]} Rb8 {[%emt 0:01:18]} 32. Bc5 {[%emt 0:03:33] [#]} Nxa3 $1 {[%emt 0:00:22]} 33. h4 {[%emt 0:01:32]} Nc4 {[%emt 0:00:32]} 34. Nd3 {[%emt 0:00:17]} a3 {[%emt 0:00:27]} 35. Nxc4 $19 {[%emt 0:00:40]} Bxc5 {[%emt 0:00:10]} 0-1

[Event "FIDE WCCC U10 2018"]
[Site "Santiago de Compostela"]
[Date "2018.11.07"]
[Round "3"]
[White "De Albuquerque, Ian Telek C."]
[Black "Pingin, Artem"]
[Result "0-1"]
[ECO "A35"]
[WhiteElo "1725"]
[BlackElo "1981"]
[Annotator "NA RC"]
[PlyCount "72"]
[EventDate "2018.11.04"]
[EventType "swiss"]
[EventCountry "ESP"]
[SourceTitle "playchess.com"]
[Source "ChessBase"]
[SourceQuality "1"]
[TimeControl "40/5400+30:1800+30"]

{[%evp 22,72,24,-20,19,0,18,24,29,-16,-19,-11,-14,-60,-59,-94,-84,-95,-87,-86,-95,-102,-8,-69,-29,-25,0,-41,32767,32767,-56,-77,32767,32767,32767,32767,0,-48,-41,-70,-76,32767,-241,-440,-263,32767,32767,32767,-205,32767,-29989,-29989,-29990]} 1. c4 {[%emt 0:00:00]} c5 {[%emt 0:02:06]} 2. Nc3 {[%emt 0:00:07]} Nc6 {[%emt 0:00:19]} 3. Nf3 {[%emt 0:00:34]} g6 {[%emt 0:00:39]} 4. d4 {[%emt 0:00:11]} cxd4 {[%emt 0:00:42]} 5. Nxd4 {[%emt 0:00:02]} Bg7 {[%emt 0:00:43]} 6. e3 {[%emt 0:00:27]} Nf6 {[%emt 0:01:22]} 7. Be2 {[%emt 0:00:40]} O-O {[%emt 0:01:28]} 8. O-O {[%emt 0:00:51]} d6 {[%emt 0:08:50]} 9. Bf3 {[%emt 0:00:45]} Ne5 {[%emt 0:03:52] A35: Symmetrical English: 2 Nc3 Nc6 3 Nf3} (9... Bd7 10. b3 a6 11. Bb2 Rb8 12. Nd5 Ne8 13. Qd2 e6 14. Nb4 Ne5 15. Be2 f5 16. Rad1 Nf6 17. Nd3 Nf7 18. Qb4 g5 19. f4 g4 {0-1 (65) Andreasen,P (2239)-Kosintseva,T (2570) Caleta 2011}) 10. b3 {[%emt 0:05:36]} Nxf3+ {[%emt 0:02:35]} 11. Qxf3 {[%emt 0:00:57]} Rb8 {[%emt 0:05:09]} 12. Bb2 $146 {[%emt 0:03:12]} ({Predecessor:} 12. Bd2 a6 13. h3 b6 14. Rac1 Bb7 15. Qe2 d5 16. cxd5 Nxd5 17. Rfd1 Bxd4 18. exd4 Nxc3 19. Bxc3 {½-½ (28) Dubost,C (1840)-Salgues,P (1949) Chateauroux 2009}) 12... a6 {[%emt 0:02:55]} (12... Bg4 $5 13. Qg3 $8 a6 $11) 13. Qe2 {[%emt 0:12:02]} Bd7 {[%emt 0:04:02]} 14. Rfd1 {[%emt 0:03:31]} Qa5 {[%emt 0:00:39]} 15. Rac1 {[%emt 0:07:41]} Rfe8 {[%emt 0:08:18]} 16. e4 {[%emt 0:14:28]} b5 {[%emt 0:08:27]} 17. Nd5 {[%emt 0:09:09]} bxc4 {[%emt 0:03:41]} 18. Rxc4 {[%emt 0:10:35]} Nxd5 {[%emt 0:01:44]} 19. exd5 {[%emt 0:00:19]} Bxd4 {[%emt 0:08:07]} 20. Rcxd4 {[%emt 0:07:40]} Qxa2 {[%emt 0:00:20]} 21. b4 {[%emt 0:01:06]} Qa4 {[%emt 0:01:28]} (21... Rbc8 $17 22. h3 Bb5) 22. Qd2 {[%emt 0:01:19]} ({White should play} 22. Ra1 $11 Qb5 23. Qd2) 22... f6 {[%emt 0:03:31]} 23. Ra1 {[%emt 0:04:03]} Qb5 {[%emt 0:01:50]} 24. Rh4 {[%emt 0:02:42]} Rf8 {[%emt 0:01:19]} 25. Ra5 {[%emt 0:01:13]} Qb7 {[%emt 0:00:20]} 26. Qe2 {[%emt 0:01:22]} Bb5 {[%emt 0:05:40]} 27. Qe6+ {[%emt 0:00:32]} Kg7 {[%emt 0:00:05]} 28. Qe3 {[%emt 0:01:20]} Rh8 {[%emt 0:01:16]} ({Besser ist} 28... Rf7 $17 29. Qb3 Rc8) 29. Re4 {[%emt 0:03:40]} Rbe8 {[%emt 0:00:16]} 30. Re6 {[%emt 0:01:17]} Rhf8 {[%emt 0:02:22]} 31. g4 {[%emt 0:02:42]} Qxd5 {[%emt 0:02:24]} 32. Rxe7+ $2 {[%emt 0:04:43]} (32. Ra1 {is a better defense.} Bc6 33. f3) 32... Rxe7 {[%emt 0:00:04]} 33. Qxe7+ {[%emt 0:00:05]} Rf7 {[%emt 0:00:11]} 34. Qe1 {[%emt 0:01:20]} Qf3 {[%emt 0:01:03]} 35. Qe6 {[%emt 0:00:43]} Qd1+ {[%emt 0:00:33]} 36. Kg2 {[%emt 0:00:02]} Bc6+ {[%emt 0:00:11]} 0-1

[Event "FIDE WCCC U10 2018"]
[Site "Santiago de Compostela"]
[Date "2018.11.07"]
[Round "3"]
[White "Deuer, Marius"]
[Black "Mogirzan, Matei-Valeriu"]
[Result "1-0"]
[ECO "A04"]
[WhiteElo "1695"]
[BlackElo "1939"]
[Annotator "NA RC"]
[PlyCount "85"]
[EventDate "2018.11.04"]
[EventType "swiss"]
[EventCountry "ESP"]
[SourceTitle "playchess.com"]
[Source "ChessBase"]
[SourceQuality "1"]
[TimeControl "40/5400+30:1800+30"]

{[%evp 9,85,29,23,32767,12,40,32,26,25,37,33,2,75,56,64,52,51,51,66,69,76,82,66,87,83,89,78,81,77,83,110,90,101,109,174,164,175,189,221,232,254,204,245,188,176,194,191,190,189,227,423,224,568,445,507,579,551,619,786,933,804,944,1036,1097,1077,1219,991,1329,1120,1285,1129,1595,29983,1894,1915,1412,29994,29995]} 1. Nf3 {[%emt 0:00:00]} g6 {[%emt 0:00:00]} 2. e4 {[%emt 0:00:00]} d6 {[%emt 0:00:00]} 3. d4 {[%emt 0:00:10]} Bg7 {[%emt 0:00:14]} 4. Bc4 {[%emt 0:00:13]} Nf6 {[%emt 0:00:25]} 5. Qe2 {[%emt 0:00:56]} O-O {[%emt 0:00:32]} 6. h3 {[%emt 0:00:17]} c6 {[%emt 0:00:12]} 7. e5 {[%emt 0:12:57]} dxe5 {[%emt 0:02:13]} 8. dxe5 {[%emt 0:00:31]} Nd5 {[%emt 0:00:36]} 9. O-O {[%emt 0:06:06]} Nd7 {[%emt 0:02:06] LiveBook: 6 Games B04: Alekhine's Defence: 4 Nf3} (9... Be6 10. Nbd2 Nd7 11. Re1 a5 12. a3 b5 13. Ba2 Qb6 14. c4 Nc7 15. Nf1 b4 16. Ng3 b3 17. Bb1 {0-1 (41) Kovalenko,I (2668)-Anton Guijarro,D (2627) Almaty 2016}) 10. Rd1 {[%emt 0:08:13]} N7b6 {[%emt 0:00:50]} (10... e6 $11 {keeps the balance.}) 11. Bb3 {[%emt 0:05:44]} Qc7 {[%emt 0:02:52]} 12. a3 $146 {[%emt 0:10:11]} ({Predecessor:} 12. c4 Nb4 13. Nc3 a5 14. c5 Nd7 15. Bxf7+ Rxf7 16. e6 Rf5 17. exd7 Bxd7 18. Qxe7 {½-½ (49) Krylov,M (2476)-Sadovsky,A (2408) Sochi 2018}) 12... Nd7 {[%emt 0:04:10]} 13. Bxd5 {[%emt 0:13:43]} cxd5 {[%emt 0:00:12]} 14. Nc3 {[%emt 0:03:37]} ({Natürlich nicht} 14. Rxd5 e6 $11) 14... Nb6 {[%emt 0:02:55]} 15. Nxd5 {[%emt 0:05:14]} Nxd5 {[%emt 0:00:06]} 16. Rxd5 {[%emt 0:00:03]} b6 {[%emt 0:01:19]} 17. Bf4 {[%emt 0:03:17]} Bb7 {[%emt 0:00:25]} 18. Rd2 {[%emt 0:01:08]} Bxf3 {[%emt 0:04:11]} 19. gxf3 {[%emt 0:06:05]} Qc8 {[%emt 0:00:33]} 20. Kg2 {[%emt 0:00:37]} Qf5 {[%emt 0:00:48]} 21. Qe4 {[%emt 0:01:32]} Qh5 {[%emt 0:00:54]} (21... Qxe4 $16 {keeps fighting.} 22. fxe4 f6) 22. Bg3 {[%emt 0:00:48]} Rac8 {[%emt 0:03:04]} 23. c3 {[%emt 0:05:19]} Rc5 {[%emt 0:01:10]} 24. Rd7 {[%emt 0:04:14]} e6 {[%emt 0:04:03]} 25. Re1 {[%emt 0:02:25]} ({Don't do} 25. Rxa7 $6 Bxe5 26. Rd1 Bxg3 $16) 25... Rfc8 {[%emt 0:00:47]} (25... a5 {was worth a try.} 26. f4 Rb8) 26. Qg4 {[%emt 0:00:57]} ({Don't take} 26. Rxa7 $6 Qf5 $18) 26... Qxg4 {[%emt 0:01:34]} 27. fxg4 {[%emt 0:00:10]} Rb5 {[%emt 0:00:28]} 28. Re2 {[%emt 0:00:47]} ({Resist} 28. Rxa7 $6 Rxb2 29. Rd1 Rf8 $16) 28... a5 {[%emt 0:00:45]} 29. f4 {[%emt 0:01:08]} Rcc5 $2 {[%emt 0:05:27]} (29... Rb3 {war einen Versuch wert.} 30. Bf2 Bf8) 30. Rd8+ {[%emt 0:00:42]} Bf8 {[%emt 0:00:40]} 31. Bh4 {[%emt 0:00:45]} Rd5 {[%emt 0:02:43] [#]} 32. Rxf8+ $1 {[%emt 0:00:24]} Kxf8 {[%emt 0:00:35]} 33. c4 $1 {[%emt 0:00:07]} Rd4 {[%emt 0:02:01]} 34. cxb5 {[%emt 0:00:09]} Ke8 {[%emt 0:00:17]} 35. Bf2 {[%emt 0:00:54]} Rd5 {[%emt 0:00:12]} 36. a4 {[%emt 0:00:08]} Kd7 {[%emt 0:00:16]} 37. Bxb6 {[%emt 0:00:18]} Kc8 {[%emt 0:00:09]} 38. Bxa5 {[%emt 0:01:07]} Rd4 {[%emt 0:00:06]} 39. Rc2+ {[%emt 0:01:15]} Kb8 {[%emt 0:00:00]} 40. b3 {[%emt 0:00:00]} Rxf4 {[%emt 0:00:00]} 41. Rf2 $18 {[%emt 0:01:25]} (41. Rc4 $142 g5 42. Rxf4 gxf4 43. Kf3 Ka8 44. Kxf4 Kb7 45. Kg5 Kc8 46. Kf6) 41... Re4 {[%emt 0:00:22]} 42. Rxf7 {[%emt 0:00:06]} Rxe5 {[%emt 0:00:05]} 43. Bc7+ {[%emt 0:00:06]} 1-0

[Event "FIDE WCCC U10 2018"]
[Site "Santiago de Compostela"]
[Date "2018.11.07"]
[Round "3"]
[White "Shivakumar, Shawnak"]
[Black "Atanasov, Anthony"]
[Result "0-1"]
[ECO "B20"]
[WhiteElo "1688"]
[BlackElo "1916"]
[Annotator "NA RC"]
[PlyCount "112"]
[EventDate "2018.11.04"]
[EventType "swiss"]
[EventCountry "ESP"]
[SourceTitle "playchess.com"]
[Source "ChessBase"]
[SourceQuality "1"]
[TimeControl "40/5400+30:1800+30"]

{[%evp 9,112,25,29,20,22,-8,20,0,15,32767,16,8,25,28,40,22,34,19,31,31,55,35,40,41,50,57,137,20,36,35,71,68,141,56,50,34,42,0,0,0,77,12,20,19,29,32767,-4,-8,32767,-6,13,32767,-98,-124,-181,-135,-140,-123,-89,-86,32767,-93,-66,-110,-83,-100,32767,-93,-122,-234,-252,-236,-215,-287,-65,-75,-59,-238,-229,-487,-537,-483,-554,-558,-542,-740,-739,-741,-769,-705,-770,-767,-798,-804,32767,-858,-1140,-864,-827,-1088,-791,-800,-854,-5625,-1048]} 1. e4 {[%emt 0:00:00]} c5 {[%emt 0:00:00]} 2. Ne2 {[%emt 0:00:21]} Nf6 {[%emt 0:00:12]} 3. d3 {[%emt 0:00:14]} d6 {[%emt 0:01:24]} 4. g3 {[%emt 0:00:26]} Nc6 {[%emt 0:03:33]} 5. Bg2 {[%emt 0:01:04]} g6 {[%emt 0:00:29]} 6. O-O {[%emt 0:00:13]} Bg7 {[%emt 0:00:53]} 7. c4 {[%emt 0:00:31]} O-O {[%emt 0:01:55]} 8. Nbc3 {[%emt 0:01:48]} Ne8 {[%emt 0:03:05] LiveBook: 372 Games} 9. f4 {[%emt 0:00:21]} Nc7 {[%emt 0:04:21] A36: Symmetrical English vs ...g6: 4 Bg2 Bg7} 10. f5 {[%emt 0:02:01]} a6 {[%emt 0:07:08]} 11. Bg5 {[%emt 0:08:14]} Rb8 {[%emt 0:12:42]} 12. Qd2 {[%emt 0:15:17]} b5 {[%emt 0:01:11]} 13. Rab1 $146 {[%emt 0:02:27]} ({Predecessor:} 13. cxb5 axb5 14. Bh6 Ne5 15. Bxg7 Kxg7 16. Nf4 Bb7 17. d4 cxd4 18. Qxd4 {0-1 (37) Petek,P-Lejlic,S (2445) Bled 1993}) 13... Ne5 {[%emt 0:10:16]} 14. b3 {[%emt 0:01:18]} Bb7 {[%emt 0:14:20]} 15. h3 {[%emt 0:01:44]} Qd7 {[%emt 0:06:11]} 16. g4 {[%emt 0:02:17]} bxc4 {[%emt 0:05:23]} 17. dxc4 {[%emt 0:00:37]} gxf5 {[%emt 0:02:12]} (17... a5 $14) 18. gxf5 {[%emt 0:01:07]} (18. exf5 $16 Bxg2 19. Kxg2) 18... Kh8 {[%emt 0:02:31]} 19. Ng3 {[%emt 0:07:54]} f6 {[%emt 0:01:14]} 20. Bf4 {[%emt 0:03:16]} Nf7 {[%emt 0:00:57]} (20... Bc6 $142) 21. Be3 {[%emt 0:00:25]} (21. Nh5 $16) 21... Rg8 {[%emt 0:05:05]} 22. Nh5 {[%emt 0:02:59]} Qe8 {[%emt 0:01:48]} 23. Nd5 {[%emt 0:06:52]} Nxd5 {[%emt 0:01:46]} 24. cxd5 {[%emt 0:00:46]} Ng5 {[%emt 0:01:03]} (24... Ne5 $11 25. Ng3 Ra8) 25. Nf4 {[%emt 0:01:06]} ({White should try} 25. Bxg5 $16 Qxh5 26. Be3) 25... Bh6 {[%emt 0:02:21]} 26. Kh2 {[%emt 0:01:28]} Nf7 {[%emt 0:01:22]} 27. Ne6 {[%emt 0:01:17]} Bxe3 {[%emt 0:01:02]} 28. Qxe3 {[%emt 0:00:17]} Bc8 {[%emt 0:02:32]} 29. Nf4 {[%emt 0:02:16]} Ne5 {[%emt 0:02:10]} 30. Qe1 {[%emt 0:02:56]} Qf8 {[%emt 0:01:46]} 31. Qc1 {[%emt 0:09:38]} Qg7 {[%emt 0:01:02]} 32. Rb2 {[%emt 0:03:55]} ({White should try} 32. Kh1 $19) 32... a5 {[%emt 0:00:36]} 33. Nh5 {[%emt 0:05:50]} Qg5 {[%emt 0:00:51]} (33... Qf8 $142 34. Nf4 Bd7) 34. Qxg5 {[%emt 0:00:45]} Rxg5 {[%emt 0:00:10]} 35. Nf4 {[%emt 0:00:10]} Ba6 {[%emt 0:00:19]} 36. Rd1 {[%emt 0:00:29] [#]} a4 $1 {[%emt 0:01:17]} 37. Rdb1 {[%emt 0:04:11]} a3 {[%emt 0:00:58]} 38. Rd2 {[%emt 0:02:32]} Rb4 {[%emt 0:00:49]} 39. Ne6 {[%emt 0:01:31]} (39. Rc1 $17) 39... Rg8 {[%emt 0:00:42]} 40. Re1 Rgb8 {[%emt 0:00:00]} 41. Rc1 {[%emt 0:08:14]} Nd3 $2 {[%emt 0:02:19]} (41... c4 $19 42. Nd4 cxb3 43. Nxb3 Bc4) 42. Rc3 {[%emt 0:02:16] [#]} Nb2 $1 {[%emt 0:06:28]} 43. Rdc2 {[%emt 0:10:23]} (43. Bf3 $17) 43... Bd3 {[%emt 0:01:08]} 44. Rd2 $2 {[%emt 0:00:50]} (44. Rc1 {war die einzige Chance.} Bxe4 45. Re1 Bxf5 46. Nc7) 44... Bb1 {[%emt 0:00:52]} 45. e5 {[%emt 0:02:21]} Bxa2 {[%emt 0:02:00]} 46. exd6 {[%emt 0:00:41]} exd6 {[%emt 0:00:21]} 47. Nxc5 {[%emt 0:01:20]} dxc5 {[%emt 0:01:09]} 48. Rxc5 {[%emt 0:00:50]} Bxb3 {[%emt 0:01:49]} 49. d6 {[%emt 0:00:22]} Rd8 {[%emt 0:01:20]} 50. d7 {[%emt 0:00:56]} Rbb8 {[%emt 0:01:19]} 51. Rd4 {[%emt 0:04:20] [#]} Nc4 $1 {[%emt 0:06:15]} 52. Rc7 {[%emt 0:02:14]} a2 {[%emt 0:02:25]} 53. Ra7 {[%emt 0:00:08]} Ne3 {[%emt 0:00:45]} 54. Rd2 {[%emt 0:03:12]} Nc2 {[%emt 0:01:01]} 55. Rxc2 {[%emt 0:00:36]} Bxc2 {[%emt 0:00:05]} 56. Bd5 {[%emt 0:00:07]} Bxf5 {[%emt 0:00:57]} 0-1